bitfinex/quotes_ETHUSD_20220105
["timestamp","ask_amount","ask_price","bid_price","bid_amount"]
[1641389432890,0.00199722,3805.1,3805.0,1.99692535]
[1641389433091,0.00199722,3805.1,3805.0,3.85170859]
[1641389433290,1.85856689,3805.4,3805.0,3.85570859]
[1641389433489,1.85856689,3805.4,3805.0,4.85570859]
[1641389433692,1.85856689,3805.4,3805.2,0.65677]
[1641389433693,0.00113684,3805.3,3805.2,0.65677]
[1641389433891,0.65790684,3805.3,3805.2,0.65677]
[1641389435298,0.95790684,3805.3,3805.2,0.65677]
[1641389435494,1.25790684,3805.3,3805.2,0.65677]
[1641389435728,1.65790684,3805.3,3805.2,0.65677]
[1641389437028,1.25790684,3805.3,3805.2,0.65677]
[1641389438029,1.31391,3805.2,3805.0,1.85478324]
[1641389438231,4.76377882,3805.2,3805.0,1.85478324]
[1641389438431,1.9708689,3805.2,3805.0,1.85478324]
[1641389438831,0.6,3805.1,3805.0,1.85478324]
[1641389439232,0.6,3805.1,3804.8,0.65697]
[1641389439473,1.3138969,3805.0,3804.8,0.65697]
[1641389439679,1.3138969,3805.0,3804.9,0.00113685]
[1641389440081,0.65695,3805.0,3804.9,0.00113685]
[1641389440678,1.31391,3805.0,3804.9,0.00113685]
[1641389441078,1.61391,3805.0,3804.9,0.00113685]
[1641389444529,1.61391,3805.0,3804.6,0.00284212]
[1641389444730,2.2712,3804.9,3804.6,1.68791327]
[1641389445133,0.3,3804.7,3804.6,1.68507115]
[1641389445532,0.3,3804.7,3804.6,0.00284212]
[1641389446232,0.3,3804.7,3804.4,2.87795799]
[1641389446431,0.3,3804.7,3804.4,0.10557897]
[1641389446631,0.3,3804.7,3804.5,0.00341054]
[1641389447084,0.95689,3804.7,3804.5,0.66043054]
[1641389447485,1.25689,3804.7,3804.5,0.66043054]
[1641389449591,1.25689,3804.7,3804.5,0.69111544]
[1641389451731,0.65689,3804.7,3804.6,2.60307726]
[1641389451932,0.65689,3804.7,3804.5,0.69111544]
[1641389452131,0.65689,3804.7,3804.6,2.72364053]
[1641389452335,0.65689,3804.7,3804.6,2.71804053]
[1641389452537,1.77403485,3806.1,3805.8,0.83010893]
[1641389452737,1.71917444,3806.1,3805.8,1.48790893]
[1641389452938,0.6568,3806.0,3805.8,1.48790893]
[1641389453137,1.99398574,3806.0,3805.8,2.48790893]
[1641389453441,0.00341055,3805.9,3805.8,2.48790893]
[1641389453637,0.00341055,3805.9,3805.8,3.80130893]
[1641389453836,0.00486096,3805.9,3805.8,3.91890893]
[1641389454035,0.00486096,3805.9,3805.8,3.91650893]
[1641389454493,0.00486096,3805.9,3805.8,5.20213148]
[1641389454699,0.00486096,3805.9,3805.8,7.40964767]
[1641389454899,1.1770955,3806.6,3805.8,7.40964767]
[1641389454900,1.1770955,3806.6,3805.8,7.40884767]
[1641389455102,1.1770955,3806.6,3805.8,10.28497634]
[1641389455399,0.00170527,3806.2,3805.9,0.1064]
[1641389455599,0.00170527,3806.2,3806.0,0.65662]
[1641389455800,0.77781966,3806.5,3806.1,2.61452166]
[1641389456004,1.13440966,3806.5,3806.2,1.31321]
[1641389456200,0.00284211,3806.4,3806.3,2.71485577]
[1641389456400,0.00284211,3806.4,3806.2,1.41561]
[1641389456600,0.00284211,3806.4,3806.2,3.62152619]
[1641389456902,0.65659,3806.5,3806.2,3.52072619]
[1641389457302,0.00284211,3806.4,3806.2,3.52072619]
[1641389457502,0.00284211,3806.4,3806.3,2.86412619]
[1641389457703,1.31321,3806.5,3806.3,2.86412619]
[1641389457903,1.91321,3806.5,3806.3,2.86412619]
[1641389459337,1.91321,3806.5,3806.4,2.20751619]
[1641389459738,3.23005794,3806.5,3806.4,2.20751619]
[1641389460541,3.23005794,3806.5,3805.8,0.86078379]
[1641389460738,1.3136547,3806.2,3805.8,0.86078379]
[1641389461141,0.30113684,3806.1,3805.8,0.86078379]
[1641389461637,0.95797684,3806.1,3805.8,0.86078379]
[1641389462286,1.3138119,3806.0,3805.8,0.83010893]
[1641389462483,2.6275626,3806.0,3805.8,0.83010893]
[1641389462684,3.2275626,3806.0,3805.8,0.83010893]
[1641389462884,3.89852074,3806.0,3805.8,0.83010893]
[1641389463085,2.5706607,3806.0,3805.8,0.83010893]
[1641389463986,4.5413108,3806.0,3805.8,0.83010893]
[1641389464186,4.5413108,3806.0,3805.3,2.57935716]
[1641389464489,1.3137511,3805.7,3805.4,0.00284212]
[1641389464690,1.3137511,3805.7,3805.4,1.26854928]
[1641389464691,1.3137464,3805.5,3805.4,1.26854928]
[1641389464889,1.6137464,3805.5,3805.4,1.26854928]
[1641389465489,2.2706264,3805.5,3805.4,1.26854928]
[1641389465731,0.95688,3805.5,3805.4,1.26854928]
[1641389465931,0.95688,3805.5,3805.4,0.00284212]
[1641389466230,0.3,3805.5,3805.4,0.00284212]
[1641389466634,0.00477665,3805.9,3805.4,0.00284212]
[1641389466635,0.00477665,3805.9,3805.4,0.10924212]
[1641389466830,0.66153205,3805.9,3805.6,0.65675]
[1641389467232,0.65804465,3805.9,3805.7,0.00113685]
[1641389467633,1.97164465,3805.9,3805.7,0.00113685]
[1641389468032,0.6,3805.8,3805.7,0.00113685]
[1641389468334,1.9136732,3805.8,3805.7,0.00113685]
[1641389468733,1.9136732,3805.8,3805.4,0.00284212]
[1641389468937,0.65688,3805.6,3805.4,0.00284212]
[1641389469134,2.2706223,3805.6,3805.4,0.00284212]
[1641389469586,0.3,3805.5,3805.4,0.00284212]
[1641389471389,0.3,3805.5,3804.9,1.26570716]
[1641389471588,0.6570554,3805.3,3804.9,1.26570716]
[1641389471786,1.3141054,3805.3,3804.9,1.26570716]
[1641389471984,1.9141054,3805.3,3804.9,1.26570716]
[1641389472183,1.9141054,3805.3,3805.0,0.00113685]
[1641389472886,1.9141054,3805.3,3804.5,0.00397896]
[1641389473085,0.55713017,3804.6,3804.5,0.00397896]
[1641389473734,0.85713017,3804.6,3804.5,0.00397896]
[1641389474137,1.15713017,3804.6,3804.5,0.00397896]
[1641389474334,0.6,3804.6,3804.5,0.00397896]
[1641389474839,0.47792686,3804.7,3804.5,0.00397896]
[1641389475038,0.17792686,3804.7,3804.5,0.00397896]
[1641389475244,2.2708818,3805.0,3804.5,1.26968612]
[1641389475245,1.6139318,3805.0,3804.5,1.26968612]
[1641389475540,1.6139318,3805.0,3804.5,1.26570716]
[1641389475541,0.00113388,3804.6,3804.5,1.26570716]
[1641389475942,0.00113388,3804.6,3804.5,1.26968612]
[1641389478086,0.00113388,3804.6,3804.5,0.00397896]
[1641389479087,0.00113388,3804.6,3804.5,20.12003412]
[1641389479390,0.00113388,3804.6,3804.5,0.00397896]
[1641389479588,0.00113388,3804.6,3804.5,1.70242208]
[1641389481136,0.00113388,3804.6,3804.5,2.31629021]
[1641389481837,0.00113388,3804.6,3804.5,0.00397896]
[1641389482238,0.00113388,3804.6,3804.5,4.01473333]
[1641389482839,0.00113388,3804.6,3804.5,2.31629021]
[1641389483841,0.00113388,3804.6,3804.5,4.01473333]
[1641389484491,0.00113388,3804.6,3804.5,2.31629021]
[1641389485888,0.00113388,3804.6,3804.5,4.01850323]
[1641389487592,0.00113388,3804.6,3804.5,2.31629021]
[1641389487791,5.00113388,3804.6,3804.5,2.31629021]
[1641389488233,5.60113388,3804.6,3804.5,2.31629021]
[1641389488837,5.60113388,3804.6,3804.5,4.01850323]
[1641389490041,5.60113388,3804.6,3804.5,2.31629021]
[1641389491143,5.60113388,3804.6,3804.5,3.59326749]
[1641389491740,5.60113388,3804.6,3804.5,2.31629021]
[1641389491741,6.1460518,3804.6,3804.5,2.31629021]
[1641389492591,5.60113388,3804.6,3804.5,2.31629021]
[1641389492788,5.60113388,3804.6,3804.5,3.59326749]
[1641389493589,6.14603527,3804.6,3804.5,2.31629021]
[1641389494387,6.32283527,3804.6,3804.5,1.38438234]
[1641389494590,3.1,3804.5,3804.4,1.27697728]
[1641389494789,3.482,3804.5,3804.4,0.87832671]
[1641389494992,4.482,3804.5,3804.4,0.87832671]
[1641389495193,0.6573,3804.1,3803.3,2.85497616]
[1641389495393,0.6573,3804.1,3803.2,2.83448357]
[1641389495394,0.63903287,3803.7,3803.2,2.83448357]
[1641389495594,0.93903287,3803.7,3803.2,2.83448357]
[1641389495843,1.32103287,3803.7,3803.2,2.83448357]
[1641389496043,1.62103287,3803.7,3803.2,2.83448357]
[1641389496542,1.62103287,3803.7,3803.1,6.25320476]
[1641389496742,0.65735,3803.6,3803.1,6.25320476]
[1641389496941,2.3540202,3803.5,3803.2,0.00738951]
[1641389497142,2.6540202,3803.5,3803.2,0.00738951]
[1641389497443,0.3,3803.4,3803.2,0.00738951]
[1641389497647,0.6,3803.4,3803.2,0.00738951]
[1641389498043,0.6,3803.4,3803.1,0.00795793]
[1641389498242,0.65733,3803.3,3803.1,0.00795793]
[1641389498642,1.3146673,3803.3,3803.1,0.00795793]
[1641389498843,1.9720073,3803.3,3803.1,0.00795793]
[1641389499145,0.3,3803.2,3803.1,0.00795793]
[1641389499996,0.3,3803.5,3803.1,0.00795793]
[1641389499997,0.6,3803.5,3803.1,0.00795793]
[1641389500199,0.6,3803.5,3803.2,0.65724]
[1641389500595,0.6,3803.5,3803.3,0.00682108]
[1641389501298,1.2572622,3803.5,3803.3,0.00682108]
[1641389501499,0.65725,3803.4,3803.3,0.00682108]
[1641389501900,0.95725,3803.4,3803.3,0.00682108]
[1641389502600,0.6,3803.4,3803.3,0.00682108]
[1641389503002,0.6,3803.5,3803.3,0.00682108]
[1641389503236,0.00103023,3803.7,3803.3,0.00682108]
[1641389503437,0.00103023,3803.7,3803.3,0.66399108]
[1641389503839,0.00103023,3803.7,3803.4,0.00625266]
[1641389504338,0.00103023,3803.7,3803.3,0.00682108]
[1641389504739,0.00103023,3803.7,3803.6,1.7106351]
[1641389505137,0.00103023,3803.7,3803.6,1.71575091]
[1641389507003,0.00103023,3803.7,3803.6,0.00511581]
[1641389508306,0.00103023,3803.7,3803.6,0.03580792]
[1641389508911,0.38303023,3803.7,3803.6,0.03580792]
[1641389509310,5.48303023,3803.7,3803.6,0.03580792]
[1641389509908,6.48303023,3803.7,3803.6,7.92e-06]
[1641389510111,1.9723263,3803.5,3803.1,1.28556367]
[1641389510413,1.33944,3803.4,3803.2,0.0022737]
[1641389510614,4.776,3803.3,3803.2,0.0022737]
[1641389510839,4.45,3803.2,3802.8,1.7140849]
[1641389511039,4.45,3803.2,3802.7,1.28610961]
[1641389511040,1.28266155,3803.0,3802.7,1.28610961]
[1641389511339,0.382,3802.9,3802.7,1.28610961]
[1641389511541,4.62064787,3802.9,3802.7,1.28610961]
[1641389511742,5.7121041,3802.8,3802.7,9.61e-06]
[1641389511942,6.7516741,3802.8,3802.4,1.7140849]
[1641389512145,1.6575875,3802.7,3802.5,1.7140849]
[1641389512343,3.532,3802.6,3802.5,1.7140849]
[1641389512644,1.682,3802.6,3802.5,1.7140849]
[1641389513445,1.682,3802.6,3802.2,1.7140849]
[1641389513647,1.3151519,3802.5,3802.2,1.7140849]
[1641389513846,0.382,3802.4,3802.3,0.00511581]
[1641389514045,0.682,3802.4,3802.3,0.00511581]
[1641389515490,1.63526287,3802.4,3802.3,1.94952381]
[1641389516094,0.682,3802.4,3802.3,1.94952381]
[1641389516894,1.63527964,3802.4,3802.3,1.94952381]
[1641389517493,1.63527964,3802.4,3802.3,8.08952381]
[1641389517894,2.63527964,3802.4,3802.3,8.08952381]
[1641389518747,2.63527964,3802.4,3802.3,6.14]
[1641389518949,2.63527964,3802.4,3802.3,2.82815381]
[1641389519149,2.63527964,3802.4,3801.8,1.7140849]
[1641389519150,6.43527964,3802.4,3801.8,1.7140849]
[1641389519348,0.65767,3802.1,3801.8,1.7140849]
[1641389519551,4.776,3801.9,3801.8,5.35545643]
[1641389519750,4.776,3801.9,3801.3,2.83448357]
[1641389519751,7.22190028,3801.8,3801.3,2.83448357]
[1641389519950,4.55477836,3801.7,3800.8,6.25320476]
[1641389520151,1.0,3801.6,3801.4,0.00284212]
[1641389520351,11.43931,3801.5,3801.4,0.00284212]
[1641389520552,14.18762603,3801.5,3801.4,0.00284212]
[1641389520955,14.18762603,3801.5,3800.8,6.25320476]
[1641389520956,6.82484154,3801.4,3800.8,6.25320476]
[1641389521154,0.6579,3801.1,3800.9,0.00284212]
[1641389521353,0.382,3801.0,3800.9,0.00284212]
[1641389521554,0.382,3801.0,3800.4,0.00568424]
[1641389521753,0.382,3801.0,3800.2,0.00682108]
[1641389521754,0.682,3801.0,3800.2,0.00682108]
[1641389521995,4.776,3800.8,3800.2,0.00682108]
[1641389522195,5.84625494,3800.7,3800.2,0.00682108]
[1641389522393,1.3159009,3800.5,3800.2,0.00682108]
[1641389522594,1.3159009,3800.5,3800.0,3.41872119]
[1641389522595,0.382,3800.4,3800.1,0.00738951]
[1641389522994,0.61266097,3800.3,3800.1,0.00738951]
[1641389523195,0.382,3800.2,3800.1,0.00738951]
[1641389523395,0.382,3800.2,3799.7,0.0096632]
[1641389523995,0.682,3800.2,3799.7,0.0096632]
[1641389524897,0.682,3800.2,3799.6,0.01023162]
[1641389525297,0.682,3800.2,3799.4,0.01136847]
[1641389525939,0.682,3800.2,3799.3,0.01193689]
[1641389526942,4.776,3800.7,3799.3,0.01193689]
[1641389526943,0.03443509,3800.9,3799.5,0.65785]
[1641389527143,0.03443509,3800.9,3799.6,2.85706836]
[1641389527144,0.382,3800.9,3799.6,2.85706836]
[1641389527342,1.33888319,3801.1,3799.6,2.98169998]
[1641389527541,0.13819997,3801.2,3799.7,1.1208632]
[1641389527742,0.13819997,3801.2,3799.8,6.27578955]
[1641389527945,0.71835627,3800.6,3800.2,1.35965771]
[1641389528342,0.71835627,3800.6,3800.3,0.00625266]
[1641389528543,1.31835627,3800.6,3800.3,0.00625266]
[1641389528746,1.31835627,3800.6,3800.5,1.73246447]
[1641389529144,1.31835627,3800.6,3800.5,1.73758028]
[1641389529342,0.6,3800.6,3800.5,1.73758028]
[1641389529596,0.3,3800.6,3800.5,1.73758028]
[1641389529795,0.3854874,3801.0,3800.5,1.73758028]
[1641389529997,0.6854874,3801.0,3800.5,1.73758028]
[1641389530197,0.6854874,3801.0,3800.6,0.00454739]
[1641389530798,0.562286,3800.9,3800.6,0.00454739]
[1641389530998,0.382,3800.8,3800.6,0.00454739]
[1641389531600,0.382,3800.8,3800.5,0.00511581]
[1641389532502,0.0034874,3801.0,3800.2,2.67250491]
[1641389532702,0.0034874,3801.0,3800.4,0.65769]
[1641389532902,0.0034874,3801.0,3800.5,2.95738113]
[1641389533103,0.0034874,3801.0,3800.7,1.73246447]
[1641389533338,0.0034874,3801.0,3800.8,2.86020665]
[1641389533539,0.0034874,3801.0,3800.8,2.97161719]
[1641389533737,0.0034874,3801.0,3800.9,3.7104]
[1641389533943,0.0034874,3801.0,3800.9,6.56263465]
[1641389534137,0.47190028,3801.8,3800.9,6.56503465]
[1641389534341,0.47190028,3801.8,3800.9,2.96663465]
[1641389534541,0.00170527,3801.7,3801.0,0.10147369]
[1641389534742,0.00170527,3801.7,3801.0,0.00227369]
[1641389534942,0.00113685,3801.6,3801.1,0.00170527]
[1641389535241,0.00113685,3801.6,3801.2,1.30518769]
[1641389535643,0.00113685,3801.6,3801.5,1.73446646]
[1641389536044,0.00113685,3801.6,3801.5,4.36365603]
[1641389536244,0.00113685,3801.6,3801.5,2.62918957]
[1641389536450,0.45507467,3801.8,3801.4,2.39195646]
[1641389536843,0.75507467,3801.8,3801.4,2.39195646]
[1641389537089,1.05507467,3801.8,3801.4,2.39195646]
[1641389537293,1.05507467,3801.8,3801.4,0.65749]
[1641389537995,0.45507467,3801.8,3801.5,2.70206415]
[1641389538197,0.45507467,3801.8,3801.7,5.90602794]
[1641389538397,0.45507467,3801.8,3801.7,4.15575555]
[1641389538593,0.45621151,3801.8,3801.7,5.92191555]
[1641389538796,0.45621151,3801.8,3801.7,5.92111555]
[1641389539001,0.45621151,3801.8,3801.7,0.76216]
[1641389539195,0.45621151,3801.8,3801.7,6.7103084]
[1641389539395,0.45621151,3801.8,3801.7,4.07608119]
[1641389539695,0.45621151,3801.8,3801.7,3.41872119]
[1641389540096,0.75621151,3801.8,3801.7,3.41872119]
[1641389540296,0.75621151,3801.8,3801.7,5.00319621]
[1641389540497,1.05621151,3801.8,3801.7,1.58447502]
[1641389541141,1.05702276,3801.8,3801.7,1.7385705]
[1641389541743,1.05702276,3801.8,3801.5,1.58447502]
[1641389542140,1.05702276,3801.8,3801.5,4.24922048]
[1641389542544,1.05702276,3801.8,3801.5,1.58447502]
[1641389542747,1.05702276,3801.8,3801.5,4.19771534]
[1641389542946,1.05702276,3801.8,3801.5,1.58447502]
[1641389546710,1.05702276,3801.8,3801.6,3.27277514]
[1641389546910,1.05702276,3801.8,3801.7,2.61301967]
[1641389547709,1.05702276,3801.8,3801.7,4.19749469]
[1641389548109,0.75702276,3801.8,3801.7,5.19749469]
[1641389548341,0.75702276,3801.8,3801.7,5.29669469]
[1641389548544,0.75702276,3801.8,3801.7,5.31189469]
[1641389548742,0.75702276,3801.8,3801.7,11.86589469]
[1641389549251,0.75702276,3801.8,3801.7,11.86109469]
[1641389549449,0.75702276,3801.8,3801.7,11.86269469]
[1641389549649,0.75702276,3801.8,3801.7,11.86109469]
[1641389549848,0.75702276,3801.8,3801.7,11.86189469]
[1641389550048,5.0,3802.4,3801.8,6.75]
[1641389550252,5.0,3802.4,3802.3,5.25725]
[1641389550450,5.0,3802.4,3802.3,8.23019668]
[1641389551072,5.0,3802.4,3802.3,7.88634108]
[1641389551550,0.03083781,3803.2,3802.9,1.1561067]
[1641389551756,0.6573,3803.4,3802.9,1.1561067]
[1641389551995,0.00738951,3803.1,3802.6,1.35310958]
[1641389552402,0.00682108,3803.0,3802.6,1.35310958]
[1641389552598,0.00682108,3803.0,3802.9,1.30136791]
[1641389552799,1.32754577,3803.3,3802.9,1.30136791]
[1641389553200,1.32754577,3803.0,3802.7,1.73515721]
[1641389553501,0.00625266,3802.9,3802.7,1.73515721]
[1641389553700,1.33379843,3802.9,3802.8,1.30211251]
[1641389554000,1.32754577,3802.9,3802.8,1.30211251]
[1641389554503,1.98492577,3802.9,3802.8,1.30211251]
[1641389555500,2.01706836,3802.9,3802.8,1.30211251]
[1641389555749,2.01706836,3802.9,3802.5,1.73515721]
[1641389555949,1.31483,3802.8,3802.6,1.73515721]
[1641389556150,1.32051424,3802.8,3802.6,1.73515721]
[1641389556351,1.62051424,3802.8,3802.6,1.73515721]
[1641389556549,1.32754577,3802.7,3802.6,1.30252309]
[1641389557351,1.32754577,3802.7,3802.4,1.73515721]
[1641389557751,0.00454739,3802.6,3802.4,1.73515721]
[1641389557951,0.66193739,3802.6,3802.4,1.73515721]
[1641389558151,0.00397897,3802.5,3802.4,1.73515721]
[1641389558552,0.00397897,3802.5,3802.4,4.33515721]
[1641389559354,1.24657176,3802.5,3802.4,2.6]
[1641389559900,1.24657176,3802.5,3802.4,3.90342636]
[1641389562303,1.24657176,3802.5,3802.4,2.6]
[1641389562304,1.62937357,3802.5,3802.4,2.6]
[1641389562507,4.58663174,3802.5,3802.4,2.6]
[1641389563104,1.62937357,3802.5,3802.4,2.6]
[1641389566448,1.62937357,3802.5,3802.4,2.42006667]
[1641389567692,1.62937357,3802.5,3802.4,4.08683395]
[1641389577703,1.24737357,3802.5,3802.4,6.74656197]
[1641389578552,1.24737357,3802.5,3802.4,4.08683395]
[1641389578953,0.00478078,3802.5,3802.4,4.08683395]
[1641389580960,0.00478078,3802.5,3802.4,5.82735912]
[1641389581560,0.00478078,3802.5,3802.4,4.08683395]
[1641389584394,1.29811121,3802.5,3802.4,4.08683395]
[1641389586261,1.29811121,3802.5,3802.4,5.39381517]
[1641389587163,1.29811121,3802.5,3802.4,4.08683395]
[1641389587363,1.68011121,3802.5,3802.4,4.08683395]
[1641389588171,1.67613224,3802.5,3802.4,4.08683395]
[1641389588663,1.67613224,3802.5,3802.4,5.3940552]
[1641389591008,1.67613224,3802.5,3802.4,4.08683395]
[1641389592008,5.17613224,3802.5,3802.4,4.08683395]
[1641389592410,5.21550678,3802.5,3802.4,4.08683395]
[1641389593011,5.51550678,3802.5,3802.4,4.08683395]
[1641389593645,6.51550678,3802.5,3802.4,4.08683395]
[1641389593846,5.51550678,3802.5,3802.4,4.08683395]
[1641389595551,1.63350678,3802.5,3802.4,4.08683395]
[1641389595752,1.29413224,3802.5,3802.4,4.08683395]
[1641389596548,1.29413224,3802.5,3802.4,4.74419395]
[1641389596749,0.00080181,3802.5,3802.4,4.74419395]
[1641389598414,0.30080181,3802.5,3802.4,7.3016251]
[1641389598618,0.30080181,3802.5,3802.4,5.74419395]
[1641389599013,0.30080181,3802.5,3802.4,8.33033855]
[1641389599215,0.30080181,3802.5,3802.4,8.28491448]
[1641389599415,0.30080181,3802.5,3802.4,5.74419395]
[1641389599617,5.30080181,3802.5,3802.4,8.30129122]
[1641389600217,5.30080181,3802.5,3802.4,9.02333731]
[1641389600420,5.30080181,3802.5,3802.4,9.02733731]
[1641389600751,5.30080181,3802.5,3802.4,9.03773731]
[1641389600957,5.30080181,3802.5,3802.4,9.04013731]
[1641389601162,5.30080181,3802.5,3802.4,9.04173731]
[1641389601355,1.73270044,3802.5,3802.4,9.04013731]
[1641389601557,1.73270044,3802.5,3802.4,9.03853731]
[1641389601756,1.73270044,3802.5,3802.4,9.03693731]
[1641389602258,1.73270044,3802.5,3802.4,5.85299395]
[1641389602460,1.73270044,3802.5,3802.4,7.3463921]
[1641389602658,1.73270044,3802.5,3802.4,4.74419395]
[1641389603158,2.03270044,3802.5,3802.4,5.74419395]
[1641389603358,2.03270044,3802.5,3802.4,5.84579395]
[1641389603557,2.03270044,3802.5,3802.4,5.84819395]
[1641389603761,2.03270044,3802.5,3802.4,5.84659395]
[1641389603958,2.03270044,3802.5,3802.4,5.85059395]
[1641389604158,2.03270044,3802.5,3802.4,5.84899395]
[1641389604359,2.03270044,3802.5,3802.4,5.84739395]
[1641389605001,2.03270044,3802.5,3802.4,5.84579395]
[1641389605201,2.03270044,3802.5,3802.4,5.84819395]
[1641389605403,2.03270044,3802.5,3802.4,5.84739395]
[1641389605700,2.03270044,3802.5,3802.4,5.84419395]
[1641389605902,2.03270044,3802.5,3802.4,5.84659395]
[1641389606102,2.03270044,3802.5,3802.4,9.31555854]
[1641389606307,2.03270044,3802.5,3802.4,9.31395854]
[1641389606503,2.03270044,3802.5,3802.4,5.74419395]
[1641389607302,2.03270044,3802.5,3802.4,9.30797812]
[1641389607502,2.03270044,3802.5,3802.4,9.20717812]
[1641389607702,2.03270044,3802.5,3802.4,9.30637812]
[1641389607903,2.03270044,3802.5,3802.4,5.84499395]
[1641389608102,2.03270044,3802.5,3802.4,5.84739395]
[1641389608546,1.73270044,3802.5,3802.4,5.84979395]
[1641389608747,1.73270044,3802.5,3802.4,5.85779395]
[1641389608951,0.00344859,3802.9,3802.5,6.8]
[1641389609148,0.00344859,3802.9,3802.7,0.65711]
[1641389609351,0.00568424,3802.8,3802.7,0.65711]
[1641389609951,0.00344859,3802.9,3802.8,8.08519057]
[1641389610152,0.00344859,3802.9,3802.8,11.05649057]
[1641389610353,0.00344859,3802.9,3802.8,11.17409057]
[1641389611154,0.3,3803.2,3802.8,12.83925785]
[1641389611357,0.3,3803.2,3802.8,12.83845785]
[1641389611657,0.00170527,3803.1,3802.9,6.238428]
[1641389611855,0.00170527,3803.1,3803.0,6.40714]
[1641389612117,0.3,3803.2,3803.0,7.51434]
[1641389612307,0.3,3803.2,3803.0,8.18350728]
[1641389612506,0.30344859,3803.3,3803.1,1.1048]
[1641389612707,0.00344859,3803.3,3803.1,4.08499728]
[1641389612906,0.00227369,3803.2,3803.1,4.08579728]
[1641389613109,0.00227369,3803.2,3803.1,5.31423]
[1641389613306,0.00227369,3803.2,3803.1,5.41823]
[1641389613707,0.00227369,3803.2,3803.1,5.42543]
[1641389613910,0.00227369,3803.2,3803.1,5.42463]
[1641389614111,0.00227369,3803.2,3803.1,5.42303]
[1641389614317,0.00227369,3803.2,3803.1,5.42143]
[1641389614511,0.00227369,3803.2,3803.1,5.42223]
[1641389614911,0.00227369,3803.2,3803.1,5.42303]
[1641389615110,0.00227369,3803.2,3803.1,5.42383]
[1641389615310,0.00227369,3803.2,3803.1,5.42223]
[1641389615511,0.00227369,3803.2,3803.1,5.42143]
[1641389615751,0.00227369,3803.2,3803.1,2.42383]
[1641389615947,0.00227369,3803.2,3803.1,1.42223]
[1641389616145,0.00227369,3803.2,3803.1,1.31423]
[1641389616350,0.00227369,3803.2,3803.1,4.77549072]
[1641389616548,1.34426018,3803.3,3803.2,2.6]
[1641389617053,1.34426018,3803.3,3803.1,1.31423]
[1641389618049,0.03004845,3803.3,3803.1,1.31423]
[1641389618251,0.6,3803.4,3803.2,0.1008]
[1641389618450,0.6,3803.4,3803.2,1.41425]
[1641389618649,0.3,3803.4,3803.2,2.31425]
[1641389618850,0.3,3803.4,3803.2,2.90238607]
[1641389619049,0.3,3803.4,3803.2,3.00238607]
[1641389619250,0.65713,3803.3,3803.2,3.00318607]
[1641389619498,0.99090409,3803.3,3803.2,2.41505]
[1641389619708,0.99090409,3803.3,3803.2,2.41345]
[1641389619903,1.64804519,3803.3,3803.2,5.87391072]
[1641389620106,1.64804519,3803.3,3803.2,5.87471072]
[1641389620303,1.64804519,3803.3,3803.2,5.77551072]
[1641389620507,1.64804519,3803.3,3803.2,5.87471072]
[1641389620704,1.34804519,3803.3,3803.2,5.87551072]
[1641389620906,1.34804519,3803.3,3803.2,5.87631072]
[1641389621107,1.34804519,3803.3,3803.2,5.77551072]
[1641389622104,1.64804519,3803.3,3803.2,5.77551072]
[1641389622506,1.64804519,3803.3,3803.2,2.31425]
[1641389623549,1.64804519,3803.3,3803.2,1.31425]
[1641389624149,1.64885011,3803.3,3803.2,1.31425]
[1641389624958,1.64885011,3803.3,3803.1,1.31423]
[1641389625155,2.30608011,3803.3,3803.1,1.31423]
[1641389628600,2.30608011,3803.3,3803.1,5.20046458]
[1641389628800,2.30608011,3803.3,3803.2,1.58504475]
[1641389629002,1.64893901,3803.3,3803.2,1.58504475]
[1641389629405,1.62152289,3803.3,3803.2,1.58504475]
[1641389629604,0.95803492,3803.3,3803.2,1.58504475]
[1641389631849,0.30080492,3803.3,3803.2,1.58504475]
[1641389632657,0.30080492,3803.3,3803.2,1.68984475]
[1641389633053,0.00080492,3803.3,3803.2,1.58504475]
[1641389633254,0.00080492,3803.3,3803.2,3.00091475]
[1641389633456,0.23447992,3803.4,3803.2,4.18554933]
[1641389634494,0.23447992,3803.4,3803.3,1.58504475]
[1641389634898,0.23561677,3803.4,3803.3,1.58504475]
[1641389635500,0.23561677,3803.4,3803.3,1.68584475]
[1641389635701,0.23561677,3803.4,3803.3,1.68664475]
[1641389635900,0.23561677,3803.4,3803.3,1.68504475]
[1641389636100,0.23561677,3803.4,3803.3,2.97207933]
[1641389636400,0.23561677,3803.4,3803.3,2.96967933]
[1641389636601,0.23561677,3803.4,3803.3,1.58504475]
[1641389636802,0.23561677,3803.4,3803.3,4.14161142]
[1641389637003,0.00113685,3803.4,3803.3,5.14161142]
[1641389637203,0.03081649,3803.5,3803.4,6.8]
[1641389637403,0.69165124,3804.0,3803.4,9.6847012]
[1641389637603,0.69165124,3804.0,3803.5,1.31394]
[1641389637908,0.00284212,3803.9,3803.6,2.90934747]
[1641389638105,0.00284212,3803.9,3803.8,6.85382521]
[1641389638346,1.35010886,3804.3,3803.8,10.35387332]
[1641389638547,1.35010886,3804.3,3803.8,11.47147332]
[1641389638745,0.6569551,3804.1,3803.9,1.1136]
[1641389638945,0.68701888,3804.1,3804.0,2.58706418]
[1641389639148,0.02551888,3804.1,3804.0,3.58706418]
[1641389639352,1.31382,3805.0,3804.0,4.35203418]
[1641389639551,0.00344859,3804.8,3804.0,4.37603418]
[1641389639851,0.00344859,3804.8,3804.1,1.1176]
[1641389639852,0.00454739,3804.2,3804.1,1.1176]
[1641389640052,0.00454739,3804.2,3804.1,5.04463793]
[1641389640250,0.00454739,3804.2,3804.1,5.38478268]
[1641389640456,0.00454739,3804.2,3804.1,5.37998268]
[1641389640649,0.00454739,3804.2,3804.1,5.37678268]
[1641389640850,0.00454739,3804.2,3804.1,5.37918268]
[1641389641051,0.00454739,3804.2,3804.1,5.38638268]
[1641389641351,0.00454739,3804.2,3804.1,5.38238268]
[1641389641552,0.00454739,3804.2,3804.1,5.37838268]
[1641389642202,0.00454739,3804.2,3804.1,5.37598268]
[1641389642500,0.00454739,3804.2,3804.1,5.37438268]
[1641389642700,0.00454739,3804.2,3804.1,7.08936211]
[1641389642898,0.00454739,3804.2,3804.1,7.09016211]
[1641389643101,0.00454739,3804.2,3804.1,4.40162418]
[1641389643298,0.00454739,3804.2,3804.1,2.68584475]
[1641389643500,0.00454739,3804.2,3804.1,2.68504475]
[1641389643699,0.00454739,3804.2,3804.1,2.68584475]
[1641389643899,0.00454739,3804.2,3804.1,5.25940474]
[1641389644099,0.00454739,3804.2,3804.1,5.26020474]
[1641389644301,0.00454739,3804.2,3804.1,5.25940474]
[1641389644501,0.00454739,3804.2,3804.1,2.68904475]
[1641389644707,0.00454739,3804.2,3804.1,2.69064475]
[1641389644907,0.00454739,3804.2,3804.1,4.30644805]
[1641389645107,0.00454739,3804.2,3804.1,5.30404805]